bitfinex-derivatives/quotes_ETHF0:USTF0_20250627
["timestamp","ask_amount","ask_price","bid_price","bid_amount"]
[1751016848961,1.76244783,2457.0,2456.9,0.81375]
[1751016849164,1.76244783,2457.0,2456.8,0.81375]
[1751016849464,0.81373,2457.0,2456.7,5.59711888]
[1751016849969,0.81368,2457.1,2456.9,0.81374]
[1751016850162,0.94972569,2457.0,2456.9,0.81374]
[1751016850364,1.76343569,2457.0,2456.9,0.81374]
[1751016851370,0.81376,2456.9,2456.8,0.81377]
[1751016851569,0.81372,2457.0,2456.9,0.81373]
[1751016851772,0.81372,2457.0,2456.8,0.81376]
[1751016852074,1.76401243,2457.0,2456.9,0.81375]
[1751016852676,0.81381,2456.7,2456.6,0.81383]
[1751016852873,3.2078,2456.7,2456.5,0.6592]
[1751016853073,0.81385,2456.6,2456.5,1.47307]
[1751016853276,4.02162,2456.7,2456.6,0.81385]
[1751016853574,4.02162,2456.7,2456.5,1.47306]
[1751016853776,0.81385,2456.6,2456.5,1.47306]
[1751016855276,0.6878,2456.8,2456.7,0.81381]
[1751016855478,1.51526,2456.9,2456.8,0.81378]
[1751016855778,2.46593644,2456.9,2456.8,0.81378]
[1751016856279,1.65217644,2456.9,2456.8,0.84358]
[1751016857080,0.95067644,2456.9,2456.8,6.44069888]
[1751016857878,1.76442644,2456.9,2456.8,6.44069888]
[1751016858381,1.76442644,2456.9,2456.8,0.0298]
[1751016862273,0.95067644,2456.9,2456.8,0.84358]
[1751016863278,1.76442644,2456.9,2456.8,0.0298]
[1751016863781,0.95067644,2456.9,2456.8,0.84358]
[1751016863980,1.76442644,2456.9,2456.8,0.84358]
[1751016865481,0.95067644,2456.9,2456.8,0.84358]
[1751016865883,1.76442644,2456.9,2456.8,0.84358]
[1751016867382,1.76442644,2456.9,2456.8,0.0298]
[1751016867883,1.76442644,2456.9,2456.8,0.7034]
[1751016868282,1.76442644,2456.9,2456.8,1.51718]
[1751016869674,1.76442644,2456.9,2456.8,0.0298]
[1751016869877,0.95067644,2456.9,2456.8,0.84358]
[1751016870280,0.95067644,2456.9,2456.8,2.88498]
[1751016871887,0.95067644,2456.9,2456.8,7.88498]
[1751016872085,0.81367,2457.2,2457.1,0.81368]
[1751016872286,1.76909311,2457.2,2457.1,0.81368]
[1751016872788,1.76909311,2457.2,2457.1,0.98488]
[1751016873782,0.95542311,2457.2,2457.1,0.98488]
[1751016874081,0.95542311,2457.2,2457.1,0.1712]
[1751016874082,1.76907311,2457.2,2457.1,0.1712]
[1751016874881,2.48407311,2457.2,2457.1,0.201]
[1751016875685,15.59027311,2457.2,2456.7,2.43733529]
[1751016875986,0.81381,2456.7,2456.6,5.64513529]
[1751016876590,0.81381,2456.7,2456.6,3.2078]
[1751016876591,1.7689873,2456.7,2456.6,3.2078]
[1751016877479,0.81385,2456.6,2456.5,0.7053]
[1751016880184,0.81388,2456.5,2456.4,2.43733529]
[1751016880989,0.81391,2456.4,2456.3,3.2078]
[1751016881389,0.81391,2456.4,2456.3,5.64715271]
[1751016883193,0.81391,2456.4,2456.3,3.2078]
[1751016887095,0.81394,2456.3,2456.2,0.7044]
[1751016888495,0.81394,2456.3,2456.2,1.51838]
[1751016889689,0.81394,2456.3,2456.2,0.7044]
[1751016891692,0.81401,2456.1,2456.0,3.2078]
[1751016891900,0.81401,2456.1,2456.0,4.02184]
[1751016892294,1.4271,2456.2,2456.1,0.81401]
[1751016892295,0.814,2456.2,2456.1,0.81401]
[1751016892491,1.53607,2456.3,2456.2,0.81398]
[1751016892896,6.703,2456.5,2456.1,0.81399]
[1751016893196,0.81397,2456.3,2456.1,0.81399]
[1751016893695,0.81398,2456.2,2456.1,0.81399]
[1751016893896,0.81395,2456.3,2456.1,0.81399]
[1751016894196,0.81395,2456.3,2456.2,1.48768]
[1751016894592,0.81393,2456.4,2456.3,0.81394]
[1751016894792,1.76725358,2456.4,2456.3,0.81394]
[1751016895495,0.81394,2456.3,2456.2,1.48765]
[1751016895803,0.81394,2456.3,2456.2,0.6737]
[1751016896188,0.81401,2456.1,2456.0,4.02183]
[1751016896393,0.814,2456.2,2456.1,0.81401]
[1751016897697,0.81396,2456.3,2456.1,0.81401]
[1751016897901,0.81396,2456.3,2456.2,0.81398]
[1751016898895,0.81399,2456.2,2456.1,0.81399]
[1751016899094,0.81401,2456.1,2456.0,4.69462]
[1751016899296,0.81401,2456.1,2456.0,3.8806]
[1751016899593,0.81401,2456.1,2456.0,4.69464]
[1751016899800,0.814,2456.2,2456.1,0.81401]
[1751016900197,0.81401,2456.1,2456.0,0.6728]
[1751016900500,0.81401,2456.1,2456.0,1.48684]
[1751016901192,3.2078,2456.3,2456.0,6.26991888]
[1751016901394,4.02175,2456.3,2456.2,0.81398]
[1751016902602,3.2078,2456.3,2456.2,0.81398]
[1751016902793,0.81389,2456.5,2456.1,3.41881]
[1751016903098,0.81389,2456.5,2456.4,6.41101888]
[1751016903304,1.76823413,2456.5,2456.4,6.41101888]
[1751016903501,1.76823413,2456.5,2456.4,5.59711888]
[1751016903801,0.95434413,2456.5,2456.2,2.88596]
[1751016903989,0.95434413,2456.4,2456.0,3.8806]
[1751016904194,0.81399,2456.2,2456.0,3.8806]
[1751016904690,0.81399,2456.2,2456.1,0.81401]
[1751016905201,0.81399,2456.2,2456.0,3.8806]
[1751016905601,0.81399,2456.2,2456.0,4.69462]
[1751016905803,0.81399,2456.2,2456.1,0.81401]
[1751016906003,1.76904887,2456.2,2456.1,0.81401]
[1751016906305,0.95505887,2456.2,2456.1,0.81401]
[1751016906801,0.95505887,2456.2,2456.1,2.18021]
[1751016912807,1.76903887,2456.2,2456.1,2.18021]
[1751016913007,1.76903887,2456.2,2456.0,9.47771888]
[1751016913008,0.81401,2456.1,2456.0,10.29173888]
[1751016913204,1.76906887,2456.1,2456.0,10.29173888]
[1751016913405,0.95505887,2456.1,2456.0,10.29173888]
[1751016913605,0.81398,2456.2,2456.1,0.81401]
[1751016913899,0.95627046,2456.4,2456.1,0.81401]
[1751016914105,3.2078,2456.6,2456.4,0.8139]
[1751016914307,4.02167,2456.6,2456.5,3.60241286]
[1751016914503,4.16421435,2456.6,2456.5,4.41629286]
[1751016914903,4.97806435,2456.6,2456.5,2.91581286]
[1751016916810,0.81391,2456.4,2456.3,4.41634286]
[1751016917004,1.77032435,2456.4,2456.3,4.41634286]
[1751016917406,0.8139,2456.5,2456.4,0.81391]
[1751016917607,1.77059861,2456.5,2456.4,0.81391]
[1751016917807,0.95669861,2456.5,2456.4,0.81391]
[1751016919412,0.95669861,2456.5,2456.4,2.18081]
[1751016920414,1.77057861,2456.5,2456.4,1.3669]
[1751016920617,0.81391,2456.4,2456.3,3.60241286]
[1751016921215,0.81391,2456.4,2456.3,4.41635286]
[1751016921514,0.81391,2456.4,2456.3,3.60241286]
[1751016922417,0.81391,2456.4,2456.3,4.41635286]
[1751016922917,0.81391,2456.4,2456.3,3.60241286]
[1751016923103,0.81391,2456.4,2456.3,2.91581286]
[1751016923817,0.81398,2456.2,2456.1,6.03216557]
[1751016924712,0.81398,2456.2,2456.1,3.59281286]
[1751016928018,6.19879664,2456.3,2455.8,2.43935271]
[1751016928318,0.81408,2455.9,2455.8,5.35516557]
[1751016929016,0.81407,2456.0,2455.8,6.16925557]
[1751016929220,0.81407,2456.0,2455.9,2.91581286]
[1751016929415,0.81407,2456.0,2455.9,3.60541286]
[1751016929720,0.81408,2455.9,2455.8,2.43935271]
[1751016929924,0.81407,2456.0,2455.9,2.91581286]
[1751016932817,0.81407,2456.0,2455.7,44.0078]
[1751016932818,0.81411,2455.8,2455.7,30.49916557]
[1751016933616,0.81411,2455.8,2455.7,2.43935271]
[1751016933817,0.81414,2455.7,2455.6,2.43935271]
[1751016934018,0.81418,2455.6,2455.5,27.58835271]
[1751016934218,0.81418,2455.6,2455.5,2.43935271]
[1751016935228,0.81418,2455.6,2455.5,5.35516557]
[1751016935728,0.81421,2455.5,2455.4,2.43935271]
[1751016935930,0.81424,2455.4,2455.3,2.43935271]
[1751016936123,1.47744,2455.4,2455.3,2.43935271]
[1751016936428,1.47744,2455.4,2455.0,3.21825183]
[1751016936429,0.81434,2455.1,2455.0,3.21825183]
[1751016936725,0.81438,2455.0,2454.9,3.21825183]
[1751016936918,2.18988,2455.0,2454.9,3.21825183]
[1751016937121,0.81441,2454.9,2454.8,6.12361286]
[1751016937623,6.594,2455.3,2454.8,6.12361286]
[1751016937926,0.81431,2455.2,2455.1,2.91581286]
[1751016938129,6.594,2455.3,2455.1,2.91581286]
[1751016938328,0.81431,2455.2,2455.1,2.91581286]
[1751016940026,8.7874,2455.3,2455.1,3.73015286]
[1751016940429,0.81431,2455.2,2455.1,3.73015286]
[1751016940629,0.81431,2455.2,2455.1,2.91581286]
[1751016941629,2.16971,2455.2,2455.1,2.91581286]
[1751016941931,0.8144,2455.0,2454.9,2.91581286]
[1751016942533,3.2078,2455.0,2454.7,3.59621286]
[1751016942726,7.41035,2455.1,2454.9,2.91581286]
[1751016942919,4.02218,2455.0,2454.9,2.91581286]
[1751016943332,0.81438,2455.0,2454.9,2.91581286]
[1751016943734,7.41036,2455.1,2454.9,2.91581286]
[1751016943932,7.41036,2455.1,2454.9,3.73020286]
[1751016943933,6.596,2455.1,2454.9,3.73020286]
[1751016944131,7.41034,2455.1,2454.9,2.91581286]
[1751016945734,4.02208,2455.3,2455.0,0.81435]
[1751016945935,4.02208,2455.3,2455.1,3.61991286]
[1751016946933,3.2078,2455.3,2455.1,0.7041]
[1751016947133,4.02209,2455.3,2455.1,3.61991286]
[1751016947436,0.81431,2455.2,2455.1,3.61991286]
[1751016948134,4.02209,2455.3,2455.1,3.61991286]
[1751016948738,0.81431,2455.2,2455.1,2.91581286]
[1751016954434,3.2078,2455.3,2455.1,2.91581286]
[1751016954639,3.2078,2455.6,2455.2,1.402]
[1751016954840,4.02199,2455.6,2455.5,0.81421]
[1751016955140,0.81413,2455.8,2455.6,0.81415]
[1751016955338,0.81413,2455.8,2455.7,3.61011286]
[1751016955542,3.2078,2455.9,2455.8,0.81411]
[1751016955848,3.2078,2455.9,2455.8,2.21611]
[1751016956234,4.02188,2455.9,2455.8,1.402]
[1751016956540,0.81407,2456.0,2455.8,2.21611]
[1751016956736,0.81407,2456.0,2455.9,2.91581286]
[1751016957441,0.81404,2456.0,2455.9,2.91581286]
[1751016957943,0.81411,2455.8,2455.7,0.6943]
[1751016958533,1.53291,2455.8,2455.7,0.6943]
[1751016959837,0.7188,2455.8,2455.4,3.2078]
[1751016960038,0.7188,2455.8,2455.5,0.6539]
[1751016960236,0.81418,2455.6,2455.5,0.6539]
[1751016961129,0.81418,2455.6,2455.5,3.56971286]
[1751016961545,0.81417,2455.7,2455.5,4.38392286]
[1751016962249,0.81417,2455.7,2455.5,5.77712286]
[1751016962546,0.81418,2455.6,2455.5,4.96291286]
[1751016962747,0.81417,2455.7,2455.5,5.77712286]
[1751016963243,0.7188,2455.8,2455.5,5.77712286]
[1751016963444,0.81418,2455.6,2455.5,4.96291286]
[1751016964545,0.81418,2455.6,2455.5,0.6539]
[1751016965237,0.81421,2455.5,2455.4,3.2078]
[1751016966446,0.81424,2455.4,2455.3,3.60361286]
[1751016970545,0.81424,2455.4,2455.3,0.6878]
[1751016970750,0.81434,2455.2,2455.0,8.25429286]
[1751016970941,0.81434,2455.2,2455.1,0.6944]
[1751016974053,0.81434,2455.2,2455.1,1.50874]
[1751016974651,0.81434,2455.2,2455.1,0.6944]
[1751016975154,0.81434,2455.2,2455.1,1.50874]
[1751016975744,0.81434,2455.2,2455.1,0.6944]
[1751016976755,0.81434,2455.2,2455.1,1.50874]
[1751016977049,0.81434,2455.2,2455.1,0.6944]
[1751016978848,0.81434,2455.2,2455.1,1.50874]
[1751016979052,0.81434,2455.2,2455.1,0.6944]
[1751016979747,0.81434,2455.1,2455.0,3.2078]
[1751016980454,0.81438,2455.0,2454.9,0.7215]
[1751016983454,3.9226,2455.2,2454.9,0.7215]
[1751016983759,4.73691,2455.2,2455.1,2.91581286]
[1751016984059,5.70331979,2455.2,2455.1,2.91581286]
[1751016984757,0.81437,2455.1,2454.9,1.53591]
[1751016984950,0.81437,2455.1,2455.0,2.91581286]
[1751016985154,4.02213,2455.2,2455.0,3.73019286]
[1751016985358,4.02213,2455.2,2455.0,5.14269286]
[1751016985558,3.2078,2455.2,2455.1,0.81434]
[1751016985759,0.7058,2455.3,2455.0,5.83866286]
[1751016985954,1.52008,2455.3,2455.2,2.91581286]
[1751016986154,2.48665438,2455.3,2455.2,2.91581286]
[1751016987159,0.81434,2455.1,2455.0,0.696]
[1751016987461,0.81438,2455.0,2454.9,3.9293]
[1751016987656,0.81438,2455.0,2454.9,6.84511286]
[1751016988057,0.81438,2455.0,2454.9,7.65952286]
[1751016988257,0.81437,2455.1,2454.9,7.65952286]
[1751016988561,0.7058,2455.3,2455.0,0.81438]
[1751016988760,1.78114651,2455.2,2455.1,2.91581286]
[1751016996377,1.78112651,2455.2,2455.1,3.73015286]
[1751016996574,1.78112651,2455.2,2455.1,2.91581286]
[1751017015189,1.78112651,2455.2,2455.1,3.73015286]
[1751017015387,0.81438,2455.0,2454.9,2.43280137]
[1751017015590,0.81438,2455.0,2454.9,5.34861423]
[1751017016286,1.78374735,2455.0,2454.9,2.91581286]
[1751017017093,0.81441,2454.9,2454.8,5.34861423]
[1751017019595,0.81441,2454.9,2454.8,2.91581286]
[1751017020492,0.81441,2454.9,2454.8,5.07755286]
[1751017021292,0.81441,2454.9,2454.8,4.26311286]
[1751017021487,4.5635,2455.2,2454.8,5.07752286]
[1751017021794,0.81441,2454.9,2454.8,2.16171]
[1751017022793,0.81441,2454.9,2454.8,4.26311286]
[1751017024595,0.81441,2454.9,2454.8,5.07755286]
[1751017025995,0.81441,2454.9,2454.8,4.26311286]
[1751017026491,0.81441,2454.9,2454.8,5.07755286]
[1751017031000,0.81441,2454.9,2454.8,8.28535286]
[1751017032603,0.81439,2455.0,2454.9,0.8144]
[1751017032803,0.81438,2455.0,2454.9,5.35831133]
[1751017036602,0.81441,2454.9,2454.8,27.43249847]
[1751017036800,0.81441,2454.9,2454.8,30.34831133]
[1751017037193,0.8144,2455.0,2454.8,31.16273133]
[1751017037393,0.8144,2455.0,2454.9,2.91581286]
[1751017037600,1.78400353,2455.0,2454.9,2.91581286]
[1751017037798,0.96960353,2455.0,2454.9,3.73022286]
[1751017038801,1.78398353,2455.0,2454.9,3.73022286]
[1751017039001,0.96960353,2455.0,2454.9,3.73022286]
[1751017039502,1.78398353,2455.0,2454.9,3.73022286]
[1751017040501,0.96960353,2455.0,2454.9,3.73022286]
[1751017041905,1.78398353,2455.0,2454.9,3.73022286]
[1751017044010,0.96960353,2455.0,2454.9,3.73022286]
[1751017044609,1.78398353,2455.0,2454.9,3.73022286]
[1751017046315,0.96960353,2455.0,2454.9,3.73022286]
[1751017046911,1.78398353,2455.0,2454.9,3.73022286]
[1751017047608,1.78398353,2455.0,2454.9,2.91581286]
[1751017048016,0.96960353,2455.0,2454.7,32.13694847]
[1751017048311,0.96960353,2454.9,2454.8,0.81444]
[1751017048508,0.81436,2455.1,2454.9,0.81441]
[1751017048709,0.97011478,2455.0,2454.9,0.81441]
[1751017048913,1.78449478,2455.0,2454.9,0.81441]
[1751017049714,0.97011478,2455.0,2454.9,3.73022286]
[1751017052617,1.78449478,2455.0,2454.9,3.73022286]
[1751017053216,1.78449478,2455.0,2454.9,2.91581286]
[1751017053716,1.78449478,2455.0,2454.9,3.73022286]
[1751017056119,0.97011478,2455.0,2454.9,3.73022286]
[1751017057719,3.2078,2455.5,2455.4,0.81424]
[1751017057916,3.2078,2455.5,2455.4,28.71005286]
[1751017059523,0.81415,2455.7,2455.5,0.81418]
[1751017059719,6.64854,2455.9,2455.3,2.91581286]
[1751017059917,0.6911,2455.6,2455.5,25.79321]
[1751017060117,0.6911,2455.6,2455.5,28.70902286]
[1751017060620,0.6911,2455.6,2455.5,3.73002286]
[1751017060821,0.6911,2455.6,2455.5,28.70902286]
[1751017061222,0.81417,2455.7,2455.5,28.70902286]
[1751017061819,0.81417,2455.7,2455.5,3.73002286]
[1751017062014,0.81417,2455.7,2455.5,28.70702286]
[1751017062622,2.83683,2455.8,2455.5,28.70702286]
[1751017062814,0.81415,2455.7,2455.5,28.70702286]
[1751017063619,2.17755,2455.7,2455.5,28.70702286]
[1751017064915,3.9222,2455.9,2455.5,27.89281286]
[1751017065118,3.9222,2455.9,2455.8,0.81411]
[1751017065308,4.73628,2455.9,2455.8,0.81411]
[1751017065513,4.73628,2455.9,2455.7,3.72995286]
[1751017065925,3.9222,2455.9,2455.8,0.81411]
[1751017066418,3.2078,2455.9,2455.8,0.81411]
[1751017066622,0.81405,2456.0,2455.8,0.81411]
[1751017066822,0.81405,2456.0,2455.9,2.91581286]
[1751017067017,0.81405,2456.0,2455.9,3.57291286]
[1751017067324,0.81402,2456.1,2456.0,0.81404]
[1751017067516,0.81401,2456.1,2456.0,2.91581286]
[1751017067822,4.68418,2456.2,2456.0,3.72983286]
[1751017068119,4.68418,2456.2,2456.1,0.81401]
[1751017068519,4.68418,2456.2,2456.0,3.72984286]
[1751017069021,0.81401,2456.1,2456.0,2.91581286]
[1751017069722,1.77612684,2456.1,2456.0,2.91581286]
[1751017077324,8.34272558,2456.9,2456.0,14.03942572]
[1751017077525,0.81375,2456.9,2456.8,2.91581286]
[1751017078120,0.81381,2456.7,2456.5,3.2078]
[1751017078423,0.81385,2456.6,2456.5,28.1688]
[1751017079130,0.81384,2456.7,2456.5,28.1688]
[1751017079317,0.81384,2456.7,2456.6,2.91581286]
[1751017079523,0.81384,2456.7,2456.6,3.60621286]
[1751017080231,1.4995,2456.8,2456.6,3.60621286]
[1751017080533,0.81381,2456.7,2456.6,0.6904]
[1751017080832,1.4995,2456.8,2456.6,3.60621286]
[1751017081032,1.4995,2456.8,2456.6,4.42004286]
[1751017081333,0.81381,2456.7,2456.6,3.60621286]
[1751017081724,1.4995,2456.8,2456.6,3.60621286]
[1751017082333,0.81381,2456.7,2456.6,3.60621286]
[1751017083632,0.6857,2456.8,2456.5,28.1688]
[1751017083633,0.81385,2456.6,2456.5,3.2078]
[1751017083838,1.53915,2456.6,2456.5,28.1648]
[1751017084034,1.53915,2456.6,2456.5,3.2078]
[1751017084639,1.53915,2456.6,2456.5,28.1648]
[1751017084936,1.53915,2456.6,2456.5,28.1638]
[1751017086738,1.53915,2456.6,2456.5,3.2078]
[1751017086939,1.53915,2456.6,2456.5,28.1638]
[1751017087437,1.53915,2456.6,2456.5,28.1628]
[1751017087646,1.53915,2456.6,2456.5,3.2078]
[1751017087831,8.9331,2456.6,2456.2,0.6998]
[1751017088031,8.9331,2456.6,2455.8,3.85999847]
[1751017088032,3.2078,2456.3,2455.8,6.482]
[1751017088233,0.81408,2455.9,2455.8,32.1348]
[1751017088640,0.81406,2456.0,2455.8,32.1348]
[1751017088832,0.81406,2456.0,2455.9,2.91581286]
[1751017090943,3.2078,2456.3,2455.9,2.91581286]
[1751017091143,3.2078,2456.3,2455.8,32.1348]
[1751017091144,4.02175,2456.3,2456.2,2.91581286]
[1751017091338,4.97841371,2456.3,2456.2,2.91581286]
[1751017092041,4.97841371,2456.3,2456.2,3.59771286]
[1751017092239,4.16446371,2456.3,2456.2,3.59771286]
[1751017092431,0.95666371,2456.3,2456.2,5.81679286]
[1751017092636,0.95666371,2456.3,2456.2,12.29879286]
[1751017093747,1.77061371,2456.3,2456.2,12.29879286]
[1751017094044,0.81388,2456.5,2456.4,0.81391]
[1751017094242,0.81388,2456.5,2456.4,28.68172286]
[1751017094744,1.7712965,2456.5,2456.4,30.10122286]
[1751017094945,0.81388,2456.5,2456.4,30.10122286]
[1751017095449,0.81388,2456.5,2456.4,29.28731286]
[1751017095945,3.2078,2456.6,2456.2,3.59771286]
[1751017096150,0.81391,2456.4,2456.3,24.952]
[1751017097945,0.81391,2456.4,2456.3,27.86781286]
[1751017102161,0.81391,2456.4,2456.3,2.91581286]
[1751017102364,0.81398,2456.2,2456.1,2.91581286]
[1751017102561,0.81398,2456.2,2456.1,28.52831286]
[1751017104263,0.81397,2456.3,2456.1,29.34232286]
[1751017104464,0.81397,2456.3,2456.1,30.69762286]
[1751017104665,0.81397,2456.3,2456.2,1.3553]
[1751017104964,3.2078,2456.6,2456.2,1.3553]
[1751017105165,1.77161291,2456.5,2456.4,0.81391]
[1751017105465,1.77161291,2456.5,2456.4,2.16921]
[1751017105865,0.95772291,2456.5,2456.4,2.16921]
[1751017106369,1.77160291,2456.5,2456.4,5.08502286]
[1751017106665,0.95772291,2456.5,2456.4,5.08502286]
[1751017107465,1.77160291,2456.5,2456.4,5.08502286]
[1751017107765,0.95772291,2456.5,2456.4,5.08502286]
[1751017109266,0.81391,2456.4,2456.3,0.7224]
[1751017109565,0.81395,2456.3,2456.2,2.91581286]
[1751017110361,0.81393,2456.4,2456.3,0.81394]
[1751017110561,0.81395,2456.3,2456.2,5.13297286]
[1751017111168,0.81393,2456.4,2456.2,5.13297286]
[1751017111367,0.81393,2456.4,2456.3,0.81395]
[1751017111568,0.81393,2456.4,2456.2,5.13296286]
[1751017111862,0.81395,2456.3,2456.2,5.13296286]
[1751017112059,0.81395,2456.3,2456.2,4.31901286]
[1751017112263,0.81395,2456.3,2456.2,2.91581286]
[1751017113358,0.81395,2456.3,2456.2,3.72979286]
[1751017113562,0.81395,2456.3,2456.2,2.91581286]
[1751017114369,4.551,2456.6,2456.2,2.91581286]
[1751017114577,0.81395,2456.3,2456.2,2.91581286]
[1751017115181,4.551,2456.6,2456.2,2.91581286]
[1751017115367,0.81394,2456.4,2456.2,3.72978286]
[1751017115566,0.81394,2456.4,2456.3,2.91581286]
[1751017115767,1.76696541,2456.4,2456.3,3.72976286]
[1751017116672,1.76696541,2456.4,2456.3,2.91581286]
[1751017116874,1.76696541,2456.4,2456.3,3.72976286]
[1751017117275,0.95302541,2456.4,2456.3,3.72976286]
[1751017120272,1.76693541,2456.4,2456.3,3.72976286]
[1751017121476,1.76693541,2456.4,2456.3,2.91581286]
[1751017122773,0.81395,2456.3,2456.2,0.81397]
[1751017122975,1.76697541,2456.3,2456.2,2.91581286]
[1751017123271,2.43527541,2456.3,2456.2,2.91581286]
[1751017125081,0.81398,2456.2,2456.1,3.10699847]
[1751017125277,1.76700541,2456.2,2456.1,0.6645]
[1751017125474,0.81401,2456.1,2456.0,2.44249847]
[1751017125784,0.81404,2456.0,2455.9,0.7049]
[1751017125974,1.76904256,2456.0,2455.9,0.7049]
[1751017126381,0.81408,2455.9,2455.8,2.44249847]
[1751017126575,0.81411,2455.8,2455.7,5.65029847]
[1751017126977,0.81411,2455.8,2455.7,3.2078]
[1751017127867,0.81414,2455.7,2455.6,3.14739847]
[1751017128080,0.81418,2455.6,2455.5,2.44249847]
[1751017128279,0.81421,2455.5,2455.4,5.35831133]
[1751017128978,8.0064,2455.6,2455.4,6.17255133]
[1751017129177,8.0064,2455.6,2455.4,3.73005286]
[1751017129380,0.81421,2455.5,2455.4,0.81424]
[1751017129678,8.00639,2455.6,2455.5,0.81421]
[1751017129875,0.81421,2455.5,2455.4,3.73004286]
[1751017130174,0.81421,2455.5,2455.4,2.91581286]
[1751017134082,1.47051,2455.5,2455.4,2.91581286]
[1751017134782,0.81424,2455.4,2455.3,3.8949]
[1751017134984,0.81424,2455.4,2455.3,6.81071286]
[1751017135184,0.81424,2455.4,2455.3,7.62499286]
[1751017136779,0.81424,2455.4,2455.3,3.8949]
[1751017137084,0.81424,2455.4,2455.3,3.2078]
[1751017137273,2.16394,2455.4,2455.3,3.2078]
[1751017140080,0.81424,2455.4,2455.3,3.2078]
[1751017140478,0.81424,2455.4,2455.3,4.02208]
[1751017141094,0.6563,2455.5,2455.3,3.2078]
[1751017141292,0.81416,2455.7,2455.6,0.81417]
[1751017141495,7.29116,2455.7,2455.6,2.91581286]
[1751017143387,8.24292992,2455.7,2455.6,2.91581286]
[1751017146003,0.81418,2455.6,2455.5,0.7116]
[1751017146190,0.81418,2455.6,2455.5,3.62741286]
[1751017146390,0.81418,2455.6,2455.5,0.7116]
[1751017146591,0.81424,2455.4,2455.3,6.12361286]
[1751017146791,7.29124,2455.4,2455.3,6.12361286]
[1751017147893,0.81428,2455.3,2455.2,3.61031286]
[1751017148891,7.28428,2455.3,2455.2,3.61031286]
[1751017151598,8.23660722,2455.3,2455.2,3.61031286]
[1751017152407,7.28428,2455.3,2455.2,0.6945]
[1751017153904,0.81438,2455.0,2454.9,1.3169]
[1751017154099,0.81438,2455.0,2454.9,1.993]
[1751017154306,0.81438,2455.0,2454.9,0.6761]
[1751017155009,7.28438,2455.0,2454.9,0.6761]
[1751017156501,0.81441,2454.9,2454.8,2.44249847]
[1751017157005,7.2844,2455.0,2454.8,6.17274133]
[1751017157607,6.47,2455.0,2454.8,6.17274133]
[1751017157796,0.81441,2454.9,2454.8,6.17274133]
[1751017157997,0.81441,2454.9,2454.8,5.35831133]
[1751017158292,0.81441,2454.9,2454.8,6.17275133]
[1751017158500,0.81441,2454.9,2454.8,0.81444]
[1751017158700,0.81444,2454.8,2454.7,1.54016]
[1751017158901,0.81444,2454.8,2454.7,5.88017286]
[1751017159406,0.81443,2454.9,2454.8,0.81444]
[1751017159604,0.81444,2454.8,2454.7,5.88016286]
[1751017161602,0.81444,2454.8,2454.7,3.64151286]
[1751017161905,0.81444,2454.8,2454.7,0.7257]
[1751017164002,0.81444,2454.8,2454.7,3.64151286]
[1751017164307,0.81444,2454.8,2454.7,0.7257]
[1751017164508,7.28544,2454.8,2454.7,3.64151286]
[1751017165806,7.28544,2454.8,2454.7,2.91581286]
[1751017166017,7.28544,2454.8,2453.6,9.66643301]
[1751017166018,2.0362,2454.7,2453.6,9.66643301]
[1751017166203,3.2078,2454.0,2453.7,2.91581286]
[1751017166521,3.2078,2454.0,2453.8,2.91581286]
[1751017166522,0.81474,2453.9,2453.8,2.91581286]
[1751017166711,1.76876098,2453.9,2453.8,2.91581286]
[1751017168112,0.81481,2453.7,2453.6,2.91581286]
[1751017168314,4.02261,2453.7,2453.6,2.91581286]
[1751017171204,3.2078,2454.0,2453.6,2.91581286]
[1751017171520,3.2078,2454.0,2453.9,2.91581286]
[1751017171521,4.02251,2454.0,2453.9,2.91581286]
[1751017172414,4.02251,2454.0,2453.9,4.32841286]
[1751017172612,3.2078,2454.0,2453.9,5.14315286]
[1751017172810,3.2078,2454.0,2453.9,4.32841286]
[1751017173017,3.2078,2454.0,2453.9,5.14315286]
[1751017173915,0.81466,2454.2,2454.0,0.81468]
[1751017174114,4.02243,2454.3,2454.1,3.73046286]
[1751017174421,0.81464,2454.2,2454.1,3.61631286]
[1751017174621,0.81464,2454.2,2454.1,5.83059286]
[1751017174915,0.81464,2454.2,2454.1,5.01591286]
[1751017175514,0.81464,2454.2,2454.1,5.83059286]
[1751017175710,5.9242,2454.7,2454.1,10.01591286]
[1751017175911,4.69349,2454.7,2454.6,2.91581286]
[1751017176305,0.81453,2454.6,2454.4,3.73039286]
[1751017177116,4.6935,2454.7,2454.5,0.81454]
[1751017177320,0.81451,2454.6,2454.4,3.73037286]
[1751017177616,0.81454,2454.5,2454.4,3.73037286]
[1751017178125,0.81454,2454.5,2454.4,2.91581286]
[1751017178419,0.81454,2454.5,2454.4,3.73039286]
[1751017178621,0.81454,2454.5,2454.4,2.91581286]
[1751017179017,0.81454,2454.5,2454.4,3.73039286]
[1751017179419,4.02229,2454.7,2454.6,0.81451]
[1751017179616,3.2078,2454.7,2454.6,3.73032286]
[1751017179823,4.02228,2454.7,2454.6,3.73032286]
[1751017180617,3.2078,2454.7,2454.6,3.73032286]
[1751017180820,4.02228,2454.7,2454.6,3.73032286]
[1751017181015,4.02228,2454.7,2454.6,4.41652286]
[1751017181817,3.2078,2454.7,2454.6,4.41652286]
[1751017182217,4.02228,2454.7,2454.6,4.41652286]
[1751017182521,3.2078,2454.7,2454.6,4.41652286]
[1751017184120,3.2078,2454.7,2454.6,5.83032286]
[1751017187025,3.2078,2454.7,2454.6,4.41652286]
[1751017187618,4.02228,2454.7,2454.6,4.41652286]
[1751017188124,3.2078,2454.7,2454.6,4.41652286]
[1751017188626,4.72703,2454.9,2454.8,0.81444]
[1751017189723,3.2078,2455.2,2454.8,2.91581286]
[1751017190027,4.02211,2455.2,2455.1,2.91581286]
[1751017190215,5.00115559,2455.2,2455.1,2.91581286]
[1751017190418,5.70595559,2455.2,2455.1,2.91581286]
[1751017190618,5.70595559,2455.2,2455.1,3.73016286]
[1751017191029,5.70595559,2455.2,2455.1,2.91581286]
[1751017191221,2.03595,2455.0,2454.6,0.6862]